bitfinex/quotes_BTCUSD_20230403
["timestamp","ask_amount","ask_price","bid_price","bid_amount"]
[1680530952076,0.01984569,28244.0,28243.0,0.14127612]
[1680530952310,0.01984569,28244.0,28242.0,0.03009918]
[1680530952532,0.01984569,28244.0,28243.0,0.001]
[1680530952777,0.01984569,28244.0,28242.0,0.03009918]
[1680530953008,0.003,28244.0,28242.0,0.03009918]
[1680530953234,0.00018,28248.0,28243.0,0.029274]
[1680530953458,0.24633398,28248.0,28244.0,0.14127612]
[1680530953709,0.3,28247.0,28244.0,0.14127612]
[1680530953946,0.30018,28247.0,28242.0,0.03009918]
[1680530954177,0.3,28247.0,28242.0,0.03009918]
[1680530954408,0.016,28244.0,28243.0,0.001]
[1680530954636,0.49796411,28247.0,28244.0,0.001]
[1680530954883,0.029514,28246.0,28244.0,0.001]
[1680530955097,0.029514,28246.0,28242.0,0.03009918]
[1680530955320,0.029514,28246.0,28242.0,0.03409918]
[1680530955533,0.029514,28246.0,28242.0,0.03009918]
[1680530955747,0.029514,28246.0,28244.0,0.001]
[1680530957804,0.029514,28246.0,28242.0,0.03409918]
[1680530958026,0.029514,28246.0,28244.0,0.001]
[1680530958246,0.029514,28246.0,28242.0,0.03009918]
[1680530958467,0.045514,28246.0,28244.0,0.001]
[1680530958688,0.029215,28245.0,28244.0,0.001]
[1680530958918,0.029215,28245.0,28242.0,0.03009918]
[1680530959146,0.01895342,28245.0,28244.0,0.001]
[1680530959365,0.04648242,28245.0,28242.0,0.03009918]
[1680530959584,0.01895342,28245.0,28242.0,0.03009918]
[1680530960027,0.31416,28247.0,28242.0,0.03009918]
[1680530960244,0.04567,28246.0,28244.0,0.001]
[1680530960467,0.028693,28245.0,28242.0,0.03009918]
[1680530960684,0.003,28245.0,28242.0,0.03009918]
[1680530960911,0.3,28247.0,28242.0,0.03009918]
[1680530961139,0.00018,28248.0,28245.0,0.03009918]
[1680530961380,0.00018,28251.0,28246.0,0.14127612]
[1680530961613,0.30018,28251.0,28247.0,0.14127612]
[1680530961815,0.029316,28250.0,28247.0,0.14127612]
[1680530962069,0.002,28247.0,28245.0,0.04780018]
[1680530963646,0.00018,28251.0,28245.0,0.04780018]
[1680530963874,0.29922,28252.0,28245.0,0.1890763]
[1680530964196,0.29922,28252.0,28246.0,0.14127612]
[1680530964436,0.029068,28251.0,28246.0,0.15915712]
[1680530964681,0.0289511,28251.0,28246.0,0.00018]
[1680530964927,1.9568,28253.0,28248.0,0.03009918]
[1680530965157,0.00012,28255.0,28251.0,0.03009918]
[1680530965391,0.001,28252.0,28251.0,0.03009918]
[1680530965631,0.26308352,28258.0,28254.0,0.03009918]
[1680530965864,0.028582,28257.0,28254.0,0.03009918]
[1680530966100,0.028582,28257.0,28254.0,0.1713753]
[1680530966331,0.028582,28257.0,28254.0,0.03009918]
[1680530966997,0.031582,28257.0,28254.0,0.03009918]
[1680530967904,0.02865,28256.0,28254.0,0.03009918]
[1680530968135,0.032083,28257.0,28254.0,0.03009918]
[1680530969807,0.029083,28257.0,28254.0,0.03009918]
[1680530970037,0.003,28256.0,28254.0,0.03009918]
[1680530970272,0.029083,28257.0,28254.0,0.03009918]
[1680530970500,0.17397981,28257.0,28254.0,0.03009918]
[1680530970734,0.027563,28256.0,28254.0,0.03009918]
[1680530970953,0.027563,28256.0,28254.0,0.04009918]
[1680530971194,0.041719,28256.0,28254.0,0.03009918]
[1680530971424,0.027575,28255.0,28254.0,0.03009918]
[1680530971625,0.041731,28255.0,28254.0,0.03009918]
[1680530972130,0.041731,28255.0,28254.0,0.03109918]
[1680530972131,0.141731,28255.0,28254.0,0.03109918]
[1680530972369,0.041731,28255.0,28254.0,0.03009918]
[1680530972603,0.057731,28255.0,28254.0,0.03109918]
[1680530974444,0.30293724,28255.0,28254.0,0.03109918]
[1680530974921,0.30293724,28255.0,28254.0,0.001]
[1680530974922,0.42420466,28255.0,28254.0,0.001]
[1680530975158,0.68623724,28255.0,28254.0,0.001]
[1680530975625,0.83623724,28255.0,28254.0,0.001]
[1680530975894,0.14989075,28254.0,28251.0,0.03009918]
[1680530976136,0.0834,28252.0,28251.0,0.03009918]
[1680530976356,0.126348,28252.0,28251.0,0.03009918]
[1680530977051,0.12624531,28252.0,28251.0,0.03009918]
[1680530977511,0.11208731,28252.0,28251.0,0.03009918]
[1680530977732,0.13908731,28252.0,28251.0,0.03009918]
[1680530978206,0.13897736,28252.0,28251.0,0.03009918]
[1680530978444,0.15313536,28252.0,28251.0,0.03009918]
[1680530979343,0.13897736,28252.0,28251.0,0.03009918]
[1680530979616,0.13886274,28252.0,28251.0,0.03009918]
[1680530979849,0.027,28252.0,28251.0,0.03009918]
[1680530980080,0.04146341,28252.0,28251.0,0.07634884]
[1680530980539,0.04135663,28252.0,28251.0,0.07634884]
[1680530980995,0.01446341,28252.0,28251.0,0.07634884]
[1680530981231,0.02339,28258.0,28255.0,0.02865284]
[1680530981232,0.02321,28258.0,28255.0,0.02865284]
[1680530981465,0.02321,28258.0,28255.0,0.16992896]
[1680530981887,0.02321,28258.0,28255.0,0.02865284]
[1680530982140,0.02421,28258.0,28255.0,0.03265284]
[1680530982331,0.02421,28258.0,28255.0,0.02865284]
[1680530982589,0.02321,28258.0,28255.0,0.02865284]
[1680530982822,0.02421,28258.0,28255.0,0.03265284]
[1680530983760,0.02321,28258.0,28255.0,0.02865284]
[1680530983984,0.02421,28258.0,28255.0,0.03265284]
[1680530985609,0.02321,28258.0,28257.0,0.028168]
[1680530986532,0.037362,28264.0,28261.0,0.02859284]
[1680530986533,0.02321,28264.0,28261.0,0.02859284]
[1680530986767,0.02321,28264.0,28263.0,0.0834]
[1680530987023,0.02321,28264.0,28263.0,0.62729368]
[1680530987253,0.02321,28264.0,28263.0,0.48601756]
[1680530987495,0.02421,28264.0,28263.0,0.48601756]
[1680530987720,0.02321,28264.0,28263.0,0.48601756]
[1680530987950,0.02421,28264.0,28263.0,0.71393544]
[1680530988231,0.02421,28264.0,28263.0,0.94711156]
[1680530988469,0.02421,28264.0,28263.0,1.08552775]
[1680530988698,0.01591,28265.0,28264.0,0.49549284]
[1680530988922,0.01591,28265.0,28264.0,1.2862184]
[1680530989147,0.01591,28265.0,28264.0,0.9700184]
[1680530989597,0.01591,28265.0,28264.0,0.19580484]
[1680530990287,0.16591,28265.0,28264.0,0.05863484]
[1680530990509,0.01691,28265.0,28264.0,0.05559284]
[1680530990748,0.01591,28265.0,28264.0,0.02859284]
[1680530990985,0.01691,28265.0,28264.0,0.05559284]
[1680530991217,0.01591,28265.0,28264.0,0.02859284]
[1680530991434,0.01991,28265.0,28264.0,0.02859284]
[1680530991656,0.49724406,28265.0,28264.0,0.02859284]
[1680530991893,0.52541006,28265.0,28264.0,0.02859284]
[1680530992129,0.083,28264.0,28262.0,0.02859284]
[1680530992362,0.35605682,28263.0,28262.0,0.02859284]
[1680530992578,0.35623682,28263.0,28262.0,0.02859284]
[1680530993023,0.27304282,28263.0,28262.0,0.02859284]
[1680530993270,0.50624282,28263.0,28262.0,0.02859284]
[1680530993502,0.53039482,28263.0,28262.0,0.03059284]
[1680530993729,1.27068691,28263.0,28262.0,0.002]
[1680530994399,1.35408691,28263.0,28262.0,0.002]
[1680530995043,1.72778691,28263.0,28262.0,0.002]
[1680530995486,1.73628691,28263.0,28262.0,0.002]
[1680530996162,1.90769407,28263.0,28262.0,0.002]
[1680530996608,2.22539407,28263.0,28262.0,0.002]
[1680530996835,2.22589407,28263.0,28262.0,0.002]
[1680530997857,2.26937549,28263.0,28254.0,0.02859284]
[1680530998126,0.0833,28255.0,28254.0,0.02859284]
[1680530998408,0.49796005,28255.0,28254.0,0.02859284]
[1680530998648,0.35624324,28255.0,28254.0,0.02859284]
[1680531000519,0.43884324,28255.0,28254.0,0.02859284]
[1680531000744,0.17140716,28253.0,28246.0,0.04969284]
[1680531000981,0.0834,28247.0,28246.0,0.0211]
[1680531001249,0.51601145,28247.0,28246.0,0.0211]
[1680531001482,0.50185145,28247.0,28246.0,0.0211]
[1680531001721,0.37411464,28247.0,28246.0,0.0211]
[1680531001976,1.4295816,28247.0,28246.0,0.0211]
[1680531002213,0.3737,28246.0,28243.0,0.02859284]
[1680531002442,0.96382665,28244.0,28243.0,0.02859284]
[1680531002680,1.31081465,28244.0,28243.0,0.02859284]
[1680531002905,0.36018465,28244.0,28243.0,0.02859284]
[1680531003847,0.36018465,28244.0,28243.0,0.02359284]
[1680531004071,0.37518465,28244.0,28243.0,0.02359284]
[1680531004329,0.37428465,28244.0,28243.0,0.02359284]
[1680531004553,0.35928465,28244.0,28243.0,0.02359284]
[1680531004781,0.38628465,28244.0,28243.0,0.02359284]
[1680531005014,0.35928465,28244.0,28243.0,0.02359284]
[1680531005263,0.29098465,28244.0,28243.0,0.02359284]
[1680531005501,0.37408465,28244.0,28243.0,0.02359284]
[1680531006175,0.35908465,28244.0,28243.0,0.02359284]
[1680531006864,0.37408465,28244.0,28243.0,0.02359284]
[1680531007086,0.35745465,28244.0,28243.0,0.02359284]
[1680531007312,0.35813565,28244.0,28243.0,0.02359284]
[1680531007794,0.27339665,28244.0,28243.0,0.02359284]
[1680531008032,0.32979665,28244.0,28243.0,0.02359284]
[1680531008260,0.35972665,28244.0,28243.0,0.02359284]
[1680531008959,0.38172665,28244.0,28243.0,0.02359284]
[1680531009199,0.35179665,28244.0,28243.0,0.02359284]
[1680531009426,0.35792765,28244.0,28243.0,0.02359284]
[1680531009644,0.38492765,28244.0,28243.0,0.02359284]
[1680531009868,0.35792765,28244.0,28243.0,0.02359284]
[1680531010085,0.37992765,28244.0,28243.0,0.02359284]
[1680531010750,0.38010765,28244.0,28243.0,0.02359284]
[1680531010983,0.37992765,28244.0,28243.0,0.02359284]
[1680531011201,0.35792765,28244.0,28243.0,0.02359284]
[1680531012852,0.3480244,28244.0,28243.0,0.02359284]
[1680531013069,0.3750244,28244.0,28243.0,0.02359284]
[1680531013290,0.30152765,28244.0,28243.0,0.02359284]
[1680531015736,0.027,28244.0,28243.0,0.04129584]
[1680531015992,0.027,28244.0,28243.0,0.07152684]
[1680531016899,0.027,28244.0,28243.0,0.04129584]
[1680531017110,0.027,28244.0,28243.0,0.07186984]
[1680531017341,0.027,28244.0,28243.0,0.04129584]
[1680531017551,0.00018,28249.0,28243.0,0.04129584]
[1680531017764,0.24627131,28248.0,28244.0,0.14127612]
[1680531017980,0.3,28247.0,28243.0,0.16486896]
[1680531018196,0.001,28244.0,28243.0,0.04629484]
[1680531018416,0.54657665,28247.0,28243.0,0.04129484]
[1680531018417,0.54639665,28247.0,28243.0,0.04129484]
[1680531018622,0.54639665,28247.0,28243.0,0.02859284]
[1680531018835,0.24639665,28246.0,28243.0,0.02859284]
[1680531019057,0.028439,28245.0,28243.0,0.02859284]
[1680531019299,0.24652201,28244.0,28243.0,0.02859284]
[1680531019514,0.27486501,28244.0,28243.0,0.02859284]
[1680531020366,0.27486501,28244.0,28243.0,0.02359284]
[1680531020600,0.35826501,28244.0,28243.0,0.02859284]
[1680531020878,0.35826501,28244.0,28243.0,0.005]
[1680531021358,0.35826501,28244.0,28242.0,0.02359284]
[1680531021608,0.028641,28243.0,28242.0,0.02359284]
[1680531021815,0.27535104,28243.0,28242.0,0.02359284]
[1680531023525,0.24671004,28243.0,28242.0,0.02359284]
[1680531024160,0.27371004,28243.0,28242.0,0.02359284]
[1680531025300,0.30139604,28243.0,28242.0,0.02359284]
[1680531026379,0.27371004,28243.0,28242.0,0.02359284]
[1680531026600,0.30247604,28243.0,28242.0,0.02359284]
[1680531027025,0.31663804,28243.0,28242.0,0.02359284]
[1680531027704,0.30247604,28243.0,28242.0,0.02359284]
[1680531027915,0.31663804,28243.0,28242.0,0.02359284]
[1680531028129,0.30247604,28243.0,28242.0,0.02359284]
[1680531031636,0.27371004,28243.0,28242.0,0.04129684]
[1680531032096,0.027,28243.0,28242.0,0.04129684]
[1680531032814,0.24664229,28243.0,28242.0,0.02359284]
[1680531033034,0.25564229,28243.0,28242.0,0.04229684]
[1680531033252,0.24664229,28243.0,28242.0,0.04129684]
[1680531033473,0.25564229,28243.0,28242.0,0.04229684]
[1680531033702,0.25564229,28243.0,28242.0,0.02459284]
[1680531033936,0.27391829,28243.0,28242.0,0.02359284]
[1680531034153,0.28291829,28243.0,28242.0,0.02459284]
[1680531034368,0.28291829,28243.0,28242.0,0.04129684]
[1680531034369,0.27391829,28243.0,28242.0,0.04129684]
[1680531035714,0.28291829,28243.0,28242.0,0.02459284]
[1680531035937,0.27391829,28243.0,28242.0,0.02359284]
[1680531036178,0.28291829,28243.0,28242.0,0.02459284]
[1680531036409,0.27391829,28243.0,28242.0,0.02359284]
[1680531036643,0.29591829,28243.0,28242.0,0.02459284]
[1680531037091,0.30091829,28243.0,28242.0,0.02459284]
[1680531037577,0.27391829,28243.0,28242.0,0.02359284]
[1680531037807,0.27391829,28243.0,28242.0,0.02459284]
[1680531037808,0.30091829,28243.0,28242.0,0.02459284]
[1680531038024,0.67461829,28243.0,28242.0,0.02459284]
[1680531038953,0.64761829,28243.0,28242.0,0.02359284]
[1680531039206,0.67461829,28243.0,28242.0,0.02459284]
[1680531039478,0.64761829,28243.0,28242.0,0.02359284]
[1680531039759,0.67461829,28243.0,28242.0,0.02459284]
[1680531040025,0.27391829,28243.0,28242.0,0.02359284]
[1680531040472,0.30091829,28243.0,28242.0,0.02459284]
[1680531040477,0.27391829,28243.0,28242.0,0.02359284]
[1680531040738,0.64761829,28243.0,28242.0,0.02359284]
[1680531041012,0.27391829,28243.0,28242.0,0.02359284]
[1680531042003,0.64761829,28243.0,28242.0,0.02359284]
[1680531042005,0.30091829,28243.0,28242.0,0.02459284]
[1680531042262,0.27391829,28243.0,28242.0,0.02359284]
[1680531042537,0.30091829,28243.0,28242.0,0.02459284]
[1680531042798,0.27391829,28243.0,28242.0,0.02359284]
[1680531043066,0.30091829,28243.0,28242.0,0.02459284]
[1680531043346,0.73012272,28243.0,28239.0,0.02359284]
[1680531043630,0.73012272,28243.0,28242.0,0.001]
[1680531043631,0.55945844,28243.0,28242.0,0.001]
[1680531043908,0.55945844,28243.0,28237.0,0.0211]
[1680531043909,0.3737,28239.0,28237.0,0.0211]
[1680531044199,0.52106,28238.0,28237.0,0.0211]
[1680531044476,0.96076,28238.0,28237.0,0.0211]
[1680531046465,0.98776,28238.0,28237.0,0.0211]
[1680531047165,0.81069,28238.0,28237.0,0.0211]
[1680531047382,0.68425925,28238.0,28237.0,0.0211]
[1680531049626,0.60115925,28238.0,28237.0,0.0211]
[1680531049853,0.57426925,28238.0,28237.0,0.0211]
[1680531050503,0.57426925,28238.0,28237.0,0.038807]
[1680531050504,0.027,28238.0,28237.0,0.038807]
[1680531051869,0.13552152,28243.0,28239.0,0.02359284]
[1680531052087,0.42698036,28242.0,28239.0,0.16486896]
[1680531052331,0.329307,28241.0,28239.0,0.02359284]
[1680531052545,0.35895875,28240.0,28239.0,0.02359284]
[1680531053708,0.38595875,28240.0,28239.0,0.02459284]
[1680531054142,0.30255875,28240.0,28239.0,0.02459284]
[1680531054367,0.30255875,28240.0,28239.0,0.04229884]
[1680531054597,0.27395575,28240.0,28239.0,0.04229884]
[1680531054832,0.27395575,28240.0,28239.0,0.02459284]
[1680531055036,0.30302775,28240.0,28239.0,0.02459284]
[1680531055260,0.30302775,28240.0,28239.0,0.04229884]
[1680531055476,0.27395575,28240.0,28239.0,0.02459284]
[1680531056399,0.27395575,28240.0,28239.0,0.04229884]
[1680531057298,0.27395575,28240.0,28239.0,0.02459284]
[1680531057513,0.30233575,28240.0,28239.0,0.02459284]
[1680531057729,0.27395575,28240.0,28239.0,0.02459284]
[1680531058163,0.27395575,28240.0,28239.0,0.04229884]
[1680531059994,0.41585256,28240.0,28239.0,0.02459284]
[1680531060222,0.35920732,28240.0,28239.0,0.02459284]
[1680531060443,0.30179375,28240.0,28239.0,0.03527228]
[1680531060896,0.30202675,28240.0,28239.0,0.03527228]
[1680531062439,0.27395575,28240.0,28239.0,0.03527228]
[1680531062880,0.30245175,28240.0,28239.0,0.03527228]
[1680531072003,1.36385015,28240.0,28239.0,0.01167944]
[1680531072238,1.64968615,28240.0,28239.0,0.01167944]
[1680531072504,0.7691594,28240.0,28239.0,0.01167944]
[1680531075533,0.76445131,28240.0,28239.0,0.01167944]
[1680531075767,1.68664819,28240.0,28239.0,0.01167944]
[1680531075988,1.67248419,28240.0,28239.0,0.01161233]
[1680531076227,1.88281545,28240.0,28239.0,0.01161233]
[1680531076472,0.59765131,28240.0,28239.0,0.01161233]
[1680531076937,1.26915531,28240.0,28239.0,0.01161233]
[1680531077157,1.29609831,28240.0,28239.0,0.01161233]
[1680531078304,1.37929831,28240.0,28239.0,0.01161233]
[1680531078530,1.55634831,28240.0,28239.0,0.01161233]
[1680531079266,1.63959333,28240.0,28239.0,0.01161233]
[1680531079499,1.37929831,28240.0,28239.0,0.01161233]
[1680531081319,1.75299831,28240.0,28239.0,0.01161233]
[1680531081994,1.75299831,28240.0,28239.0,1.233e-05]
[1680531081995,2.15535512,28240.0,28239.0,1.233e-05]
[1680531082223,2.15535512,28240.0,28237.0,0.0211]
[1680531082224,0.55010716,28238.0,28237.0,0.00069365]
[1680531082422,2.70277652,28238.0,28237.0,0.00069365]
[1680531082921,2.74551732,28238.0,28237.0,0.00069365]
[1680531083360,2.87264285,28238.0,28237.0,0.00069365]
[1680531083564,3.92717106,28238.0,28237.0,0.00069365]
[1680531083774,3.92718099,28238.0,28237.0,0.00069365]
[1680531084842,2.48301424,28238.0,28237.0,0.00069365]
[1680531085057,2.51001424,28238.0,28237.0,0.00069365]
[1680531085283,2.59473573,28238.0,28237.0,0.00069365]
[1680531085496,2.59473573,28238.0,28237.0,0.14196977]
[1680531085497,1.50913536,28238.0,28237.0,0.14196977]
[1680531085724,0.99745841,28238.0,28237.0,0.02428649]
[1680531085940,0.96934341,28238.0,28237.0,0.02428649]
[1680531086592,0.26934341,28238.0,28237.0,0.02428649]
[1680531087059,0.24234341,28238.0,28237.0,0.02428649]
[1680531087291,0.56934341,28238.0,28237.0,0.02428649]
[1680531091421,0.59750341,28238.0,28237.0,0.02428649]
[1680531091903,0.57050341,28238.0,28237.0,0.02428649]
[1680531092092,0.54234341,28238.0,28237.0,0.02428649]
[1680531093508,0.54234341,28238.0,28233.0,0.02359284]
[1680531093509,0.99956341,28238.0,28233.0,0.02359284]
[1680531093714,0.0834,28234.0,28231.0,0.0211]
[1680531093912,0.49570281,28233.0,28231.0,0.0211]
[1680531094142,0.328978,28232.0,28231.0,0.0211]
[1680531094358,0.57219946,28232.0,28231.0,0.0211]
[1680531094944,0.57237946,28232.0,28231.0,0.0211]
[1680531095144,0.59937946,28232.0,28231.0,0.0211]
[1680531096374,0.68437458,28232.0,28231.0,0.0211]
[1680531097730,0.59937946,28232.0,28231.0,0.0211]
[1680531099520,0.20978321,28231.0,28226.0,0.0211]
[1680531099747,0.0834,28227.0,28226.0,0.0211]
[1680531099993,0.25316281,28227.0,28226.0,0.0211]
[1680531100206,0.44494028,28227.0,28226.0,0.0211]
[1680531100434,0.411266,28227.0,28226.0,0.0211]
[1680531100648,0.433266,28227.0,28226.0,0.0211]
[1680531101321,0.411266,28227.0,28226.0,0.0211]
[1680531101544,0.027866,28227.0,28226.0,0.0211]
[1680531101759,0.00018,28229.0,28226.0,0.038814]
[1680531102011,0.00018,28232.0,28227.0,0.15]
[1680531102243,0.00018,28235.0,28228.0,0.49598668]
[1680531102470,0.00018,28237.0,28230.0,0.053134]
[1680531102707,0.27144854,28237.0,28231.0,0.14127612]
[1680531102941,0.00018,28237.0,28232.0,0.15]
[1680531103185,0.00018,28239.0,28233.0,0.14127612]
[1680531103424,0.24265695,28238.0,28233.0,0.14127612]
[1680531103642,0.24283695,28238.0,28233.0,0.14127612]
[1680531104283,0.24283695,28238.0,28232.0,0.01771]
[1680531104505,0.38473376,28238.0,28232.0,0.15898612]
[1680531105390,0.00018,28238.0,28233.0,0.53923201]
[1680531105619,0.00012,28240.0,28234.0,0.017708]
[1680531105876,0.24253152,28239.0,28235.0,0.14127612]
[1680531106104,0.24253152,28239.0,28234.0,0.017708]
[1680531106105,0.3,28238.0,28234.0,0.017708]
[1680531106349,0.30018,28238.0,28234.0,0.017708]
[1680531107003,0.31518,28238.0,28234.0,0.017708]
[1680531107438,0.01518,28238.0,28235.0,0.029493]
[1680531107669,0.015,28238.0,28236.0,0.017707]
[1680531107891,0.015,28238.0,28237.0,0.028799]
[1680531108803,0.015,28238.0,28236.0,0.017707]
[1680531108804,0.00018,28242.0,28236.0,0.017707]
[1680531109023,0.030018,28241.0,28236.0,0.15898312]
[1680531109244,0.330198,28241.0,28236.0,0.15898312]
[1680531109904,0.330198,28241.0,28236.0,0.017707]
[1680531110118,0.30018,28241.0,28236.0,0.017707]
[1680531110348,0.30018,28241.0,28237.0,0.029749]
[1680531110568,0.30018,28241.0,28238.0,0.017706]
[1680531110770,0.30018,28241.0,28237.0,0.017706]
[1680531111254,0.057198,28241.0,28237.0,0.017706]
[1680531111465,0.027,28241.0,28237.0,0.017706]
[1680531111895,0.00018,28243.0,28237.0,0.017706]
[1680531112118,0.24233531,28243.0,28237.0,0.15898212]
[1680531112340,0.3,28242.0,28237.0,0.15898212]
[1680531112554,0.027,28241.0,28237.0,0.017706]
[1680531113434,0.30018,28242.0,28237.0,0.017706]
[1680531114165,0.008,28241.0,28237.0,0.017706]
[1680531114388,0.30018,28242.0,28236.0,0.017707]
[1680531114601,0.45007681,28242.0,28236.0,0.15898312]
[1680531114819,0.45007681,28242.0,28236.0,0.017707]
[1680531115027,0.52105622,28242.0,28236.0,0.017707]
[1680531115257,0.52105622,28242.0,28236.0,0.15898312]
[1680531115903,0.008,28241.0,28236.0,0.15898312]
[1680531116114,0.008,28241.0,28236.0,0.017707]
[1680531117208,0.52105622,28242.0,28236.0,0.017707]
[1680531117467,0.00218,28242.0,28239.0,0.0834]
[1680531117710,0.21205188,28248.0,28239.0,0.0834]
[1680531117711,0.00018,28244.0,28241.0,0.3655]
[1680531117955,0.21873976,28252.0,28243.0,0.0834]
[1680531117956,0.00018,28248.0,28243.0,0.0834]
[1680531118193,0.19670366,28253.0,28242.0,0.58003068]
[1680531118194,0.00018,28250.0,28245.0,0.0833]
[1680531118433,0.00018,28250.0,28246.0,0.18805512]
[1680531118658,0.00018,28250.0,28247.0,0.030698]
[1680531118904,0.00018,28250.0,28247.0,0.15897612]
[1680531119120,0.028338,28248.0,28247.0,0.0177]
[1680531119362,0.028338,28248.0,28247.0,0.047518]
[1680531119589,0.028338,28248.0,28247.0,0.029818]
[1680531119810,0.028338,28248.0,28247.0,0.047518]
[1680531120264,0.030338,28248.0,28247.0,0.05009155]
[1680531120721,0.028338,28248.0,28247.0,0.05009155]
[1680531120944,0.028338,28248.0,28247.0,0.04509155]
[1680531121437,0.030338,28248.0,28247.0,0.02739155]
[1680531121680,0.030338,28248.0,28247.0,0.00257355]
[1680531122585,0.028338,28248.0,28247.0,0.00257355]
[1680531122819,0.030338,28248.0,28247.0,0.00257355]
[1680531123046,0.028338,28248.0,28247.0,0.00257355]
[1680531123282,0.28455312,28248.0,28247.0,0.00257355]
[1680531124016,0.31486512,28248.0,28247.0,0.00257355]
[1680531124903,0.26955312,28248.0,28247.0,0.00257355]
[1680531125595,0.29980712,28248.0,28247.0,0.00257355]
[1680531125830,0.26955312,28248.0,28247.0,0.00257355]
[1680531126054,0.28371312,28248.0,28247.0,0.00257355]
[1680531126267,0.32152712,28248.0,28247.0,0.00257355]
[1680531126726,0.29952712,28248.0,28247.0,0.00257355]
[1680531127374,0.32170712,28248.0,28242.0,0.0832]
[1680531127604,0.38342527,28247.0,28242.0,0.0832]
[1680531127830,0.38360527,28247.0,28242.0,0.0832]
[1680531128503,0.24170846,28247.0,28242.0,0.0832]
[1680531128727,0.24170846,28247.0,28243.0,0.029552]
[1680531129448,0.24170846,28247.0,28242.0,0.100904]
[1680531130212,0.24170846,28247.0,28242.0,0.10076103]
[1680531130692,0.00118,28247.0,28245.0,0.16055355]
[1680531130985,0.001,28247.0,28246.0,0.384882]
[1680531131252,0.028338,28248.0,28246.0,0.384882]
[1680531131492,0.03944645,28252.0,28247.0,0.029443]
[1680531131733,0.03944645,28252.0,28248.0,0.19437612]
[1680531131999,0.03944645,28252.0,28249.0,0.028014]
[1680531132294,0.03944645,28252.0,28250.0,0.017699]
[1680531132566,0.03944645,28252.0,28251.0,0.027657]
[1680531133134,0.03944645,28252.0,28251.0,0.017698]
[1680531133378,0.03944645,28252.0,28251.0,0.044714]
[1680531133600,0.03962645,28252.0,28251.0,0.017698]
[1680531134054,0.05562645,28252.0,28251.0,0.018698]
[1680531135633,0.05562645,28252.0,28251.0,0.047055]
[1680531135852,0.05562645,28252.0,28251.0,0.001]
[1680531142233,0.31606098,28252.0,28251.0,0.001]
[1680531142463,0.42681998,28252.0,28251.0,0.001]
[1680531142707,0.87681998,28252.0,28251.0,0.001]
[1680531145388,0.02939,28236.0,28231.0,0.00018]
[1680531145615,0.24297054,28235.0,28231.0,0.00018]
[1680531145850,0.38486735,28235.0,28231.0,0.00018]
[1680531146075,0.24297054,28235.0,28231.0,0.00018]
[1680531146544,0.03944645,28237.0,28231.0,0.35537443]
[1680531146773,0.28235427,28237.0,28232.0,0.14127612]
[1680531146996,0.28235427,28237.0,28233.0,0.017709]
[1680531147221,0.28235427,28237.0,28233.0,0.017889]
[1680531147444,0.001,28235.0,28233.0,0.017889]
[1680531147679,0.28235427,28237.0,28233.0,0.017889]
[1680531147902,0.29135427,28237.0,28233.0,0.017889]
[1680531148376,0.03944645,28237.0,28233.0,0.017889]
[1680531148597,0.009,28235.0,28233.0,0.017709]
[1680531148846,0.009,28235.0,28233.0,0.017889]
[1680531149522,0.03944645,28237.0,28233.0,0.017889]
[1680531149749,0.04844645,28237.0,28233.0,0.017889]
[1680531150420,0.03944645,28237.0,28233.0,0.017889]
[1680531150641,0.009,28235.0,28234.0,0.0085]
[1680531150861,0.03944645,28237.0,28234.0,0.0085]
[1680531150862,0.03944645,28237.0,28234.0,0.026209]
[1680531151080,0.04844645,28237.0,28234.0,0.026209]
[1680531152218,0.03944645,28237.0,28234.0,0.0085]
[1680531152577,0.03944645,28237.0,28234.0,0.026208]
[1680531152844,0.05444645,28237.0,28234.0,0.026208]
[1680531153988,0.05444645,28237.0,28234.0,0.026388]
[1680531154206,0.05444645,28237.0,28234.0,0.109788]
[1680531154414,0.05444645,28237.0,28235.0,0.026989]
[1680531154636,0.015,28237.0,28236.0,0.053122]
[1680531154858,0.015,28237.0,28236.0,0.090109]
[1680531155303,0.03944645,28240.0,28236.0,0.090109]
[1680531155527,0.03944645,28240.0,28236.0,0.00018]
[1680531155528,0.022,28237.0,28236.0,0.00018]
[1680531155753,0.2690711,28240.0,28236.0,0.017707]
[1680531155963,0.027,28237.0,28236.0,0.017707]
[1680531156443,0.027,28237.0,28236.0,0.045811]
[1680531156666,0.03944645,28240.0,28236.0,0.054311]
[1680531156884,0.06644645,28240.0,28236.0,0.52237368]
[1680531157104,0.03944645,28240.0,28237.0,0.036437]
[1680531157254,0.03944645,28240.0,28238.0,0.046505]
[1680531157471,0.03944645,28240.0,28238.0,0.017706]
[1680531157711,0.03944645,28240.0,28237.0,0.026386]
[1680531158478,0.06644645,28240.0,28237.0,0.00868]
[1680531158679,0.03944645,28240.0,28237.0,0.026387]
[1680531158911,0.06644645,28240.0,28237.0,0.026387]
[1680531159803,0.06644645,28240.0,28237.0,0.00868]
[1680531160009,0.06644645,28240.0,28237.0,0.0085]
[1680531160401,0.06644645,28240.0,28236.0,0.00018]
[1680531160621,0.06644645,28240.0,28236.0,0.026207]
[1680531161077,0.06644645,28240.0,28236.0,0.0085]
[1680531161300,0.03944645,28240.0,28236.0,0.0085]
[1680531161506,0.06644645,28240.0,28235.0,0.017708]
[1680531161731,0.06644645,28240.0,28236.0,0.0085]
[1680531162166,0.03944645,28240.0,28236.0,0.0085]
[1680531162392,0.24240611,28239.0,28234.0,0.00018]
[1680531162615,0.38430292,28239.0,28234.0,0.00018]
[1680531163359,0.03065,28238.0,28234.0,0.00018]
[1680531163599,0.24265695,28238.0,28234.0,0.017889]
[1680531163828,0.28582757,28238.0,28234.0,0.017889]
[1680531164737,0.00018,28242.0,28237.0,0.0834]
[1680531164955,0.63944645,28243.0,28238.0,0.58540868]
[1680531164956,0.016,28239.0,28238.0,0.58540868]
[1680531165187,0.63944645,28243.0,28238.0,0.44413256]
[1680531165188,0.63962645,28243.0,28238.0,0.44413256]
[1680531165464,0.63962645,28243.0,28239.0,0.16957612]
[1680531165690,0.63962645,28243.0,28240.0,0.054972]
[1680531165915,0.63962645,28243.0,28241.0,0.028935]
[1680531166133,0.63944645,28243.0,28242.0,0.017704]
[1680531166578,0.64144645,28243.0,28241.0,0.017704]
[1680531166824,0.63944645,28243.0,28241.0,0.017704]
[1680531167048,0.63944645,28243.0,28240.0,0.017705]